[Event "SVK Extraliga 2019-20"]
[Site "Slovakia"]
[Date "2019.11.24"]
[Round "4.3"]
[White "Pacher, Milan"]
[Black "Hrabusa, Matej"]
[Result "*"]
[ECO "C67"]
[WhiteElo "2442"]
[BlackElo "2360"]
[Annotator "NA"]
[PlyCount "30"]
[EventDate "2019.10.19"]
[EventType "team-tourn"]
[EventCountry "SVK"]
[SourceTitle "playchess.com"]
[Source "ChessBase"]
[SourceQuality "1"]
[WhiteTeam "Slovan"]
[BlackTeam "Liptovska"]
[TimeControl "40/5400+30:1800+30"]

1. e4 {[%emt 0:00:00]} e5 {[%emt 0:00:00]} 2. Nf3 {[%emt 0:00:00]} Nc6 {[%emt 0:00:00]} 3. Bb5 {[%emt 0:00:00]} Nf6 {[%emt 0:00:00]} 4. O-O {[%emt 0:00:04]} Nxe4 {[%emt 0:00:00]} 5. Re1 {[%emt 0:00:13]} Nd6 {[%emt 0:00:00]} 6. Nxe5 {[%emt 0:00:08]} Be7 {[%emt 0:00:00]} 7. Bf1 {[%emt 0:00:33]} Nxe5 {[%emt 0:00:00]} 8. Rxe5 {[%emt 0:00:11]} O-O {[%emt 0:00:02]} 9. d4 {[%emt 0:00:13]} Bf6 {[%emt 0:00:34]} 10. Re1 {[%emt 0:00:42]} Re8 {[%emt 0:00:12]} 11. Bf4 {[%emt 0:00:33]} Rxe1 {[%emt 0:04:17]} 12. Qxe1 {[%emt 0:00:08]} Ne8 {[%emt 0:00:20]} 13. Nc3 {[%emt 0:01:04]} Bxd4 {[%emt 0:00:52]} 14. Nd5 {[%emt 0:00:38]} d6 {[%emt 0:01:11]} 15. Bg5 {[%emt 0:02:35]} f6 {[%emt 0:01:52]} *

[Event "SVK Extraliga 2019-20"]
[Site "Slovakia"]
[Date "2019.11.24"]
[Round "4.3"]
[White "Vykouk, Jan"]
[Black "Bagi, Mate"]
[Result "1/2-1/2"]
[ECO "C55"]
[WhiteElo "2433"]
[BlackElo "2461"]
[Annotator "ChessBase"]
[PlyCount "111"]
[EventDate "2019.10.19"]
[EventType "team-tourn"]
[EventCountry "SVK"]
[SourceTitle "playchess.com"]
[Source "ChessBase"]
[SourceQuality "1"]
[WhiteTeam "Modra"]
[BlackTeam "Streda"]
[TimeControl "40/5400+30:1800+30"]

1. e4 {[%emt 0:00:00]} e5 {[%emt 0:00:00]} 2. Nf3 {[%emt 0:00:00]} Nc6 {[%emt 0:00:00]} 3. Bc4 {[%emt 0:00:00]} Nf6 {[%emt 0:00:39]} 4. d3 {[%emt 0:00:03]} h6 {[%emt 0:05:16]} 5. c3 {[%emt 0:00:17]} d6 {[%emt 0:02:22]} 6. Nbd2 {[%emt 0:01:08]} g5 {[%emt 0:05:30]} 7. h3 {[%emt 0:00:06]} Bg7 {[%emt 0:01:52]} 8. Bb3 {[%emt 0:00:45]} Ne7 {[%emt 0:13:24]} 9. Nf1 {[%emt 0:04:17]} c6 {[%emt 0:17:48]} 10. Ne3 {[%emt 0:04:15]} g4 {[%emt 0:19:55]} 11. hxg4 {[%emt 0:00:05]} Nxg4 {[%emt 0:00:13]} 12. Nh4 {[%emt 0:02:22]} Nxe3 {[%emt 0:01:35]} 13. Bxe3 {[%emt 0:00:08]} d5 {[%emt 0:01:03]} 14. Qh5 {[%emt 0:01:38]} Be6 {[%emt 0:02:15]} 15. Nf5 {[%emt 0:05:47]} Nxf5 {[%emt 0:05:26]} 16. exf5 {[%emt 0:00:06]} Bd7 {[%emt 0:00:09]} 17. O-O-O {[%emt 0:00:16]} a5 {[%emt 0:05:51]} 18. a3 {[%emt 0:04:03]} Qf6 {[%emt 0:02:45]} 19. g4 {[%emt 0:00:09]} O-O-O {[%emt 0:01:17]} 20. d4 {[%emt 0:06:28]} e4 {[%emt 0:00:57]} 21. Bf4 {[%emt 0:00:20]} Rde8 {[%emt 0:01:53]} 22. Rhe1 {[%emt 0:13:52]} Rhf8 {[%emt 0:01:55]} 23. f3 {[%emt 0:00:46]} exf3 {[%emt 0:01:07]} 24. Be5 {[%emt 0:06:26]} f2 {[%emt 0:00:49]} 25. Rf1 {[%emt 0:00:30]} Rxe5 {[%emt 0:00:24]} 26. dxe5 {[%emt 0:00:06]} Qxe5 {[%emt 0:00:07]} 27. Rxf2 {[%emt 0:00:40]} Qe3+ {[%emt 0:01:02]} 28. Rfd2 {[%emt 0:00:06]} Be5 {[%emt 0:02:42]} 29. Kb1 {[%emt 0:00:57]} f6 {[%emt 0:00:53]} 30. Rd3 {[%emt 0:00:48]} Qg5 {[%emt 0:00:14]} 31. Qxg5 {[%emt 0:02:13]} hxg5 {[%emt 0:00:06]} 32. Rh3 {[%emt 0:00:25]} Rf7 {[%emt 0:00:50]} 33. c4 {[%emt 0:02:06]} dxc4 {[%emt 0:00:54]} 34. Bxc4 {[%emt 0:00:07]} Re7 {[%emt 0:00:03]} 35. Rh8+ {[%emt 0:02:48]} Kc7 {[%emt 0:00:49]} 36. a4 {[%emt 0:10:42]} c5 {[%emt 0:02:06]} 37. b3 {[%emt 0:14:36]} Bd4 {[%emt 0:00:26]} 38. Rf8 {[%emt 0:08:48]} Re4 {[%emt 0:02:06]} 39. Rf7 {[%emt 0:00:15]} Kd6 {[%emt 0:00:39]} 40. Rxf6+ {[%emt 0:00:23]} Ke5 {[%emt 0:00:24]} 41. Rf7 {[%emt 0:31:13]} Bc6 {[%emt 0:02:05]} 42. Re7+ {[%emt 0:00:00]} Kf4 {[%emt 0:07:16]} 43. Rxe4+ {[%emt 0:00:00]} Bxe4+ {[%emt 0:00:13]} 44. Kc1 {[%emt 0:00:00]} Kxg4 {[%emt 0:08:26]} 45. Rxd4 {[%emt 0:00:00]} cxd4 {[%emt 0:00:04]} 46. f6 {[%emt 0:00:00]} Bg6 {[%emt 0:00:07]} 47. f7 {[%emt 0:00:00]} Bxf7 {[%emt 0:00:02]} 48. Bxf7 {[%emt 0:00:00]} Kf3 {[%emt 0:02:10]} 49. Kd2 {[%emt 0:00:00]} Ke4 {[%emt 0:00:34]} 50. Be6 {[%emt 0:00:00]} b6 {[%emt 0:00:33]} 51. Bd7 {[%emt 0:00:00]} Kd5 {[%emt 0:00:43]} 52. Kd3 {[%emt 0:00:00]} Kd6 {[%emt 0:00:30]} 53. Bc8 {[%emt 0:05:33]} Kc5 {[%emt 0:02:00]} 54. Bd7 {[%emt 0:00:24]} Kd6 {[%emt 0:00:07]} 55. Bb5 {[%emt 0:00:06]} Kc5 {[%emt 0:01:17]} 56. Bd7 {[%emt 0:02:46]} 1/2-1/2

[Event "SVK Extraliga 2019-20"]
[Site "Slovakia"]
[Date "2019.11.24"]
[Round "4.3"]
[White "Piesik, Piotr"]
[Black "Horvath, Jozsef"]
[Result "1-0"]
[ECO "B12"]
[WhiteElo "2403"]
[BlackElo "2437"]
[Annotator "NA"]
[PlyCount "143"]
[EventDate "2019.10.19"]
[EventType "team-tourn"]
[EventCountry "SVK"]
[SourceTitle "playchess.com"]
[Source "ChessBase"]
[SourceQuality "1"]
[WhiteTeam "Dubnica"]
[BlackTeam "Podhajska"]
[TimeControl "40/5400+30:1800+30"]

1. e4 {[%emt 0:00:00]} c6 {[%emt 0:00:00]} 2. d4 {[%emt 0:06:18]} d5 {[%emt 0:00:14]} 3. e5 {[%emt 0:00:04]} Bf5 {[%emt 0:00:16]} 4. c4 {[%emt 0:00:07]} e6 {[%emt 0:00:19]} 5. Nc3 {[%emt 0:00:04]} Ne7 {[%emt 0:00:38]} 6. a3 {[%emt 0:00:33]} Nd7 {[%emt 0:10:10]} 7. c5 {[%emt 0:01:10]} a5 {[%emt 0:16:53]} 8. Be3 {[%emt 0:04:15]} Bg6 {[%emt 0:08:55]} 9. f4 {[%emt 0:05:57]} b6 {[%emt 0:17:25]} 10. b4 {[%emt 0:02:22]} axb4 {[%emt 0:03:51]} 11. axb4 {[%emt 0:00:14]} Rxa1 {[%emt 0:01:12]} 12. Qxa1 {[%emt 0:00:06]} bxc5 {[%emt 0:00:17]} 13. bxc5 {[%emt 0:00:04]} Nxc5 {[%emt 0:01:04]} 14. dxc5 {[%emt 0:00:05]} d4 {[%emt 0:00:14]} 15. Nb5 {[%emt 0:00:03]} dxe3 {[%emt 0:00:11]} 16. Nd6+ {[%emt 0:00:38]} Kd7 {[%emt 0:00:09]} 17. Ba6 {[%emt 0:06:11]} Qb8 {[%emt 0:08:19]} 18. Bb7 {[%emt 0:04:53]} Nd5 {[%emt 0:13:24]} 19. Qa4 {[%emt 0:06:33]} Qc7 {[%emt 0:01:36]} 20. Qa7 {[%emt 0:01:45]} Nb4 {[%emt 0:07:55]} 21. Nf3 {[%emt 0:12:24]} Be7 {[%emt 0:02:06]} 22. Ke2 {[%emt 0:18:47]} Bd3+ {[%emt 0:00:14]} 23. Kxe3 {[%emt 0:00:05]} Rb8 {[%emt 0:00:06]} 24. Rd1 {[%emt 0:02:07]} f6 {[%emt 0:03:57]} 25. Bxc6+ {[%emt 0:04:36]} Nxc6 {[%emt 0:00:17]} 26. Qxc7+ {[%emt 0:00:07]} Kxc7 {[%emt 0:00:02]} 27. Rxd3 {[%emt 0:00:17]} Nb4 {[%emt 0:00:58]} 28. Rd2 {[%emt 0:02:27]} Nd5+ {[%emt 0:00:07]} 29. Ke4 {[%emt 0:06:03]} Rb3 {[%emt 0:02:11]} 30. f5 {[%emt 0:01:34]} Re3+ {[%emt 0:00:33]} 31. Kd4 {[%emt 0:00:04]} fxe5+ {[%emt 0:01:00]} 32. Nxe5 {[%emt 0:00:20]} Re1 {[%emt 0:00:33]} 33. Nb5+ {[%emt 0:02:59]} Kc8 {[%emt 0:00:24]} 34. fxe6 {[%emt 0:01:11]} Nf4 {[%emt 0:00:32]} 35. Nd3 {[%emt 0:01:18]} Bf6+ {[%emt 0:00:32]} 36. Kc4 {[%emt 0:00:23]} Re4+ {[%emt 0:00:50]} 37. Kb3 {[%emt 0:00:05]} Re3 {[%emt 0:00:19]} 38. Nd6+ {[%emt 0:00:58]} Kd8 {[%emt 0:00:13]} 39. Kc4 {[%emt 0:00:21]} Nxd3 {[%emt 0:00:58]} 40. Rxd3 {[%emt 0:00:05]} Rxe6 {[%emt 0:00:06]} 41. Rd2 {[%emt 0:33:46]} Kc7 {[%emt 0:09:21]} 42. Ra2 {[%emt 0:00:00]} Rxd6 {[%emt 0:02:22]} 43. cxd6+ {[%emt 0:00:00]} Kxd6 {[%emt 0:00:02]} 44. Kd3 {[%emt 0:00:00]} h5 {[%emt 0:02:16]} 45. Ke4 {[%emt 0:00:00]} Ke6 {[%emt 0:00:05]} 46. h3 {[%emt 0:00:00]} g6 {[%emt 0:00:28]} 47. Ra6+ {[%emt 0:00:00]} Kf7 {[%emt 0:00:14]} 48. Kd5 {[%emt 0:00:00]} Bc3 {[%emt 0:00:40]} 49. Re6 {[%emt 0:00:00]} Bf6 {[%emt 0:00:20]} 50. Kd6 {[%emt 0:00:00]} Bd4 {[%emt 0:00:08]} 51. Re4 {[%emt 0:00:00]} Bc3 {[%emt 0:00:21]} 52. Rf4+ {[%emt 0:00:00]} Kg7 {[%emt 0:00:05]} 53. Ke6 {[%emt 0:00:00]} Bb2 {[%emt 0:00:21]} 54. Rf7+ {[%emt 0:00:00]} Kg8 {[%emt 0:00:16]} 55. Rc7 {[%emt 0:00:00]} Ba1 {[%emt 0:01:17]} 56. Rc4 {[%emt 0:00:00]} Kg7 {[%emt 0:01:05]} 57. g4 {[%emt 0:00:00]} hxg4 {[%emt 0:00:06]} 58. Rxg4 {[%emt 0:00:00]} Bb2 {[%emt 0:01:01]} 59. Rb4 {[%emt 0:00:00]} Bc3 {[%emt 0:01:09]} 60. Rb7+ {[%emt 0:00:00]} Kg8 {[%emt 0:00:42]} 61. h4 {[%emt 0:00:00]} Be1 {[%emt 0:02:20]} 62. Kf6 {[%emt 0:00:00]} Bxh4+ {[%emt 0:00:54]} 63. Kxg6 {[%emt 0:00:00]} Kf8 {[%emt 0:00:10]} 64. Rh7 {[%emt 0:00:00]} Bg3 {[%emt 0:01:33]} 65. Kf6 {[%emt 0:00:00]} Ke8 {[%emt 0:00:11]} 66. Rh3 {[%emt 0:00:00]} Bf4 {[%emt 0:01:33]} 67. Rf3 {[%emt 0:00:00]} Bc1 {[%emt 0:03:01]} 68. Ke6 {[%emt 0:00:00]} Bd2 {[%emt 0:04:40]} 69. Rf2 {[%emt 0:00:00]} Be3 {[%emt 0:02:00]} 70. Re2 {[%emt 0:00:00]} Bb6 {[%emt 0:00:38]} 71. Rb2 {[%emt 0:00:24]} Bc7 {[%emt 0:00:10]} 72. Ra2 {[%emt 0:00:14]} 1-0

[Event "SVK Extraliga 2019-20"]
[Site "Slovakia"]
[Date "2019.11.24"]
[Round "4.3"]
[White "Manik, Mikulas"]
[Black "Rohacek, Miroslav"]
[Result "1-0"]
[ECO "C87"]
[WhiteElo "2377"]
[BlackElo "2222"]
[Annotator "NA"]
[PlyCount "81"]
[EventDate "2019.10.19"]
[EventType "team-tourn"]
[EventCountry "SVK"]
[SourceTitle "playchess.com"]
[Source "ChessBase"]
[SourceQuality "1"]
[WhiteTeam "Prakovce"]
[BlackTeam "Bratislava"]
[TimeControl "40/5400+30:1800+30"]

1. e4 {[%emt 0:00:00]} e5 {[%emt 0:00:03]} 2. Nf3 {[%emt 0:00:00]} Nc6 {[%emt 0:00:10]} 3. Bb5 {[%emt 0:00:00]} a6 {[%emt 0:00:14]} 4. Ba4 {[%emt 0:00:00]} Nf6 {[%emt 0:00:10]} 5. O-O {[%emt 0:00:00]} Be7 {[%emt 0:00:20]} 6. Re1 {[%emt 0:00:44]} d6 {[%emt 0:01:23]} 7. c3 {[%emt 0:00:07]} b5 {[%emt 0:02:05]} 8. Bb3 {[%emt 0:00:54]} Na5 {[%emt 0:03:02]} 9. Bc2 {[%emt 0:00:40]} c5 {[%emt 0:01:18]} 10. d4 {[%emt 0:00:02]} Qc7 {[%emt 0:05:10]} 11. Nbd2 {[%emt 0:00:03]} O-O {[%emt 0:05:26]} 12. a4 $11 {[%emt 0:08:08]} cxd4 {[%emt 0:13:52]} 13. cxd4 {[%emt 0:01:15]} Bd7 {[%emt 0:00:09]} 14. Nf1 {[%emt 0:07:38]} Rfc8 {[%emt 0:02:27]} 15. Ne3 {[%emt 0:06:27]} Nc6 {[%emt 0:08:52]} 16. Bb3 {[%emt 0:00:56]} Nxd4 {[%emt 0:08:20]} 17. Nxd4 {[%emt 0:01:42]} exd4 {[%emt 0:00:21]} 18. Qxd4 {[%emt 0:02:02]} bxa4 {[%emt 0:01:26]} 19. Bxa4 {[%emt 0:01:13]} Qc5 {[%emt 0:06:06]} 20. Qd3 {[%emt 0:05:39]} Bxa4 {[%emt 0:05:42]} 21. Rxa4 {[%emt 0:00:49]} Qb5 {[%emt 0:00:23]} 22. Qxb5 {[%emt 0:04:45]} axb5 {[%emt 0:00:11]} 23. Rxa8 {[%emt 0:00:22]} Rxa8 {[%emt 0:00:02]} 24. f3 {[%emt 0:00:10]} Nd7 {[%emt 0:11:10]} 25. Nf5 {[%emt 0:03:59]} Kf8 {[%emt 0:09:03]} 26. Bf4 {[%emt 0:00:55]} g6 {[%emt 0:09:21]} 27. Nxd6 {[%emt 0:07:13]} Nc5 {[%emt 0:00:21]} 28. Rd1 {[%emt 0:01:32]} Rd8 {[%emt 0:00:54]} 29. Rd5 {[%emt 0:05:29]} g5 {[%emt 0:02:03]} 30. Bg3 {[%emt 0:01:09]} Ne6 {[%emt 0:01:13]} 31. Nxb5 {[%emt 0:01:18]} Rc8 {[%emt 0:00:21]} 32. Nc3 {[%emt 0:01:51]} Bc5+ {[%emt 0:01:22]} 33. Kf1 {[%emt 0:01:05]} Bd4 {[%emt 0:00:37]} 34. Bd6+ {[%emt 0:00:18]} Ke8 {[%emt 0:01:09]} 35. Be5 {[%emt 0:00:15]} Be3 {[%emt 0:01:38]} 36. Rb5 {[%emt 0:03:32]} Bc1 {[%emt 0:00:45]} 37. g3 {[%emt 0:00:29]} Nc5 {[%emt 0:00:41]} 38. Ke2 {[%emt 0:00:43]} Nd7 {[%emt 0:00:32]} 39. Bd4 {[%emt 0:00:15]} Ra8 {[%emt 0:00:30]} 40. Kd1 {[%emt 0:00:18]} Ra1 {[%emt 0:00:17]} 41. Kc2 {[%emt 0:30:02]} 1-0

[Event "SVK Extraliga 2019-20"]
[Site "Slovakia"]
[Date "2019.11.24"]
[Round "4.4"]
[White "Kostolansky, Sebastian Lukas"]
[Black "Haring, Viktor"]
[Result "1/2-1/2"]
[ECO "B30"]
[WhiteElo "2420"]
[BlackElo "2266"]
[Annotator "NA"]
[PlyCount "76"]
[EventDate "2019.10.19"]
[EventType "team-tourn"]
[EventCountry "SVK"]
[SourceTitle "playchess.com"]
[Source "ChessBase"]
[SourceQuality "1"]
[WhiteTeam "Liptovska"]
[BlackTeam "Liptovska"]
[TimeControl "40/5400+30:1800+30"]

1. e4 {[%emt 0:00:00]} c5 {[%emt 0:00:43]} 2. Nf3 {[%emt 0:02:20]} Nc6 {[%emt 0:04:11]} 3. Bb5 {[%emt 0:00:12]} e6 {[%emt 0:00:16]} 4. O-O {[%emt 0:02:43]} Nge7 {[%emt 0:00:34]} 5. c3 {[%emt 0:03:06]} a6 {[%emt 0:14:59]} 6. Bxc6 {[%emt 0:21:56]} Nxc6 {[%emt 0:00:16]} 7. d4 {[%emt 0:00:03]} d5 {[%emt 0:03:32]} 8. exd5 {[%emt 0:12:03]} Qxd5 {[%emt 0:01:53]} 9. dxc5 {[%emt 0:00:04]} Qxd1 {[%emt 0:05:43]} 10. Rxd1 {[%emt 0:00:05]} Bxc5 {[%emt 0:00:09]} 11. Nbd2 {[%emt 0:00:10]} O-O {[%emt 0:00:31]} 12. Ne4 {[%emt 0:05:03]} Be7 {[%emt 0:11:48]} 13. Bf4 {[%emt 0:00:39]} f6 {[%emt 0:02:09]} 14. Bd6 {[%emt 0:05:15]} Bxd6 {[%emt 0:01:10]} 15. Rxd6 {[%emt 0:04:58]} e5 {[%emt 0:01:29]} 16. Nc5 {[%emt 0:02:44]} Rd8 {[%emt 0:28:31]} 17. Rad1 {[%emt 0:06:21]} Rxd6 {[%emt 0:00:08]} 18. Rxd6 {[%emt 0:00:04]} Kf8 {[%emt 0:00:14]} 19. Ne1 {[%emt 0:10:29]} Ke7 {[%emt 0:01:52]} 20. Rd2 {[%emt 0:00:11]} Na5 {[%emt 0:07:46]} 21. b3 {[%emt 0:06:04]} Bf5 {[%emt 0:01:45]} 22. f3 {[%emt 0:01:10]} Rc8 {[%emt 0:03:23]} 23. Na4 {[%emt 0:01:41]} b5 {[%emt 0:07:14]} 24. Nb6 {[%emt 0:00:03]} Rd8 {[%emt 0:00:08]} 25. Rxd8 {[%emt 0:08:11]} Kxd8 {[%emt 0:00:06]} 26. b4 {[%emt 0:00:09]} Nc6 {[%emt 0:01:07]} 27. a4 {[%emt 0:00:18]} Kc7 {[%emt 0:00:58]} 28. Nd5+ {[%emt 0:00:12]} Kd6 {[%emt 0:00:10]} 29. Ne3 {[%emt 0:00:03]} Bb1 {[%emt 0:00:47]} 30. axb5 {[%emt 0:00:05]} axb5 {[%emt 0:00:02]} 31. N1c2 {[%emt 0:02:36]} Bxc2 {[%emt 0:01:06]} 32. Nxc2 {[%emt 0:00:04]} Ne7 {[%emt 0:00:09]} 33. Ne3 {[%emt 0:03:16]} f5 {[%emt 0:01:03]} 34. c4 {[%emt 0:02:31]} bxc4 {[%emt 0:00:28]} 35. Nxc4+ {[%emt 0:00:03]} Kd5 {[%emt 0:00:14]} 36. Nb6+ {[%emt 0:00:59]} Kc6 {[%emt 0:00:28]} 37. Nc4 {[%emt 0:00:04]} Kd5 {[%emt 0:00:37]} 38. Nb6+ {[%emt 0:00:05]} Kc6 {[%emt 0:00:18]} 1/2-1/2

[Event "SVK Extraliga 2019-20"]
[Site "Slovakia"]
[Date "2019.11.24"]
[Round "4.4"]
[White "Chovan, Milan"]
[Black "Vojtek, Vladimir"]
[Result "1-0"]
[ECO "C11"]
[WhiteElo "2318"]
[BlackElo "2278"]
[Annotator "NA"]
[PlyCount "129"]
[EventDate "2019.10.19"]
[EventType "team-tourn"]
[EventCountry "SVK"]
[SourceTitle "playchess.com"]
[Source "ChessBase"]
[SourceQuality "1"]
[WhiteTeam "Podhajska"]
[BlackTeam "Dubnica"]
[TimeControl "40/5400+30:1800+30"]

1. d4 {[%emt 0:00:00]} e6 {[%emt 0:00:00]} 2. e4 {[%emt 0:00:00]} d5 {[%emt 0:00:00]} 3. Nc3 {[%emt 0:00:00]} Nf6 {[%emt 0:00:06]} 4. Bg5 {[%emt 0:00:01]} dxe4 {[%emt 0:00:16]} 5. Nxe4 {[%emt 0:00:10]} Be7 {[%emt 0:00:04]} 6. Bxf6 {[%emt 0:00:31]} gxf6 {[%emt 0:00:06]} 7. Nf3 {[%emt 0:01:20]} f5 {[%emt 0:00:06]} 8. Nc3 {[%emt 0:01:08]} a6 {[%emt 0:00:27]} 9. d5 {[%emt 0:07:26]} c6 {[%emt 0:04:44]} 10. dxe6 {[%emt 0:01:01]} Qxd1+ {[%emt 0:02:49]} 11. Rxd1 {[%emt 0:00:07]} Bxe6 {[%emt 0:00:14]} 12. Nd4 {[%emt 0:02:28]} Nd7 {[%emt 0:19:46]} 13. Bd3 {[%emt 0:10:45]} Bf6 {[%emt 0:01:24]} 14. Nxf5 {[%emt 0:14:30]} O-O-O {[%emt 0:00:18]} 15. Nd6+ {[%emt 0:03:27]} Kc7 {[%emt 0:00:25]} 16. Nde4 {[%emt 0:00:09]} Bd4 {[%emt 0:12:25]} 17. O-O {[%emt 0:02:30]} h6 {[%emt 0:04:27]} 18. Rfe1 {[%emt 0:12:34]} Rhg8 {[%emt 0:05:50]} 19. Bf1 {[%emt 0:05:09]} Ne5 {[%emt 0:04:49]} 20. Kh1 {[%emt 0:01:20]} Bg4 {[%emt 0:16:52]} 21. Be2 {[%emt 0:09:02]} Bxe2 {[%emt 0:09:53]} 22. Rxe2 {[%emt 0:01:56]} f5 {[%emt 0:01:53]} 23. Red2 {[%emt 0:02:12]} c5 {[%emt 0:05:16]} 24. Nf6 {[%emt 0:03:09]} Bxc3 {[%emt 0:04:13]} 25. bxc3 {[%emt 0:02:09]} Rxd2 {[%emt 0:00:32]} 26. Rxd2 {[%emt 0:00:02]} Rf8 {[%emt 0:01:33]} 27. Nd5+ {[%emt 0:04:48]} Kc6 {[%emt 0:00:23]} 28. Nf4 {[%emt 0:00:26]} Nc4 {[%emt 0:02:04]} 29. Re2 {[%emt 0:00:28]} Rf6 {[%emt 0:02:21]} 30. h4 {[%emt 0:00:32]} Nd6 {[%emt 0:00:32]} 31. f3 {[%emt 0:00:33]} Nb5 {[%emt 0:00:15]} 32. Re3 {[%emt 0:01:46]} Na3 {[%emt 0:00:13]} 33. Re2 {[%emt 0:03:27]} Nb5 {[%emt 0:00:15]} 34. Re3 {[%emt 0:00:53]} Na3 {[%emt 0:00:06]} 35. Nh5 {[%emt 0:02:15]} Rd6 {[%emt 0:00:34]} 36. g4 {[%emt 0:01:35]} fxg4 {[%emt 0:00:40]} 37. fxg4 {[%emt 0:00:05]} Nxc2 38. Rg3 {[%emt 0:00:53]} Kd7 {[%emt 0:02:14]} 39. g5 {[%emt 0:00:19]} hxg5 {[%emt 0:00:14]} 40. hxg5 {[%emt 0:00:02]} Rg6 {[%emt 0:00:32]} 41. Nf4 {[%emt 0:34:23]} Rg8 {[%emt 0:31:07]} 42. g6 {[%emt 0:00:00]} Ke7 {[%emt 0:00:00]} 43. Rg5 {[%emt 0:00:00]} c4 {[%emt 0:00:00]} 44. Rf5 {[%emt 0:00:00]} Rg7 {[%emt 0:00:00]} 45. Rc5 {[%emt 0:00:00]} Kd6 {[%emt 0:00:00]} 46. Rd5+ {[%emt 0:00:00]} Ke7 {[%emt 0:00:00]} 47. Rd2 {[%emt 0:00:23]} Na3 {[%emt 0:00:00]} 48. Re2+ {[%emt 0:00:17]} Kd6 {[%emt 0:00:23]} 49. Kh2 {[%emt 0:00:24]} Nb5 {[%emt 0:00:24]} 50. Re3 {[%emt 0:00:19]} Na7 {[%emt 0:01:25]} 51. Kh3 {[%emt 0:00:48]} Nc6 {[%emt 0:00:11]} 52. Re6+ {[%emt 0:00:44]} Kd7 {[%emt 0:00:24]} 53. Kh4 {[%emt 0:00:32]} Ne7 {[%emt 0:01:08]} 54. Rf6 {[%emt 0:01:00]} Rg8 {[%emt 0:01:34]} 55. Kg5 {[%emt 0:00:29]} a5 {[%emt 0:00:49]} 56. Rf7 {[%emt 0:00:56]} Kd6 {[%emt 0:00:11]} 57. Kf6 {[%emt 0:01:25]} Re8 {[%emt 0:00:45]} 58. g7 {[%emt 0:01:45]} Ng8+ {[%emt 0:00:14]} 59. Kg6 {[%emt 0:00:22]} b5 {[%emt 0:00:21]} 60. Rf8 {[%emt 0:01:20]} Kd7 {[%emt 0:00:46]} 61. Nd5 {[%emt 0:03:16]} Re6+ {[%emt 0:00:24]} 62. Nf6+ {[%emt 0:00:39]} Rxf6+ {[%emt 0:00:54]} 63. Rxf6 {[%emt 0:00:04]} b4 {[%emt 0:00:16]} 64. cxb4 {[%emt 0:00:05]} axb4 {[%emt 0:00:03]} 65. Rf4 {[%emt 0:00:31]} 1-0

[Event "SVK Extraliga 2019-20"]
[Site "Slovakia"]
[Date "2019.11.24"]
[Round "4.4"]
[White "Mosesov, Danylo"]
[Black "Jurcik, Marian"]
[Result "1/2-1/2"]
[ECO "A53"]
[WhiteElo "2286"]
[BlackElo "2486"]
[Annotator "ChessBase"]
[PlyCount "49"]
[EventDate "2019.10.19"]
[EventType "team-tourn"]
[EventCountry "SVK"]
[SourceTitle "playchess.com"]
[Source "ChessBase"]
[SourceQuality "1"]
[WhiteTeam "Košice"]
[BlackTeam "Zilina"]
[TimeControl "40/5400+30:1800+30"]

1. d4 {[%emt 0:00:00]} Nf6 {[%emt 0:00:32]} 2. c4 {[%emt 0:00:00]} d6 {[%emt 0:01:58]} 3. Nc3 {[%emt 0:01:12]} e5 {[%emt 0:01:31]} 4. Nf3 {[%emt 0:00:17]} Nbd7 {[%emt 0:00:57]} 5. e4 {[%emt 0:01:01]} g6 {[%emt 0:00:31]} 6. d5 {[%emt 0:01:20]} Bg7 {[%emt 0:02:45]} 7. h3 {[%emt 0:00:20]} Nc5 {[%emt 0:02:57]} 8. Qc2 {[%emt 0:00:10]} a5 {[%emt 0:00:45]} 9. Be3 {[%emt 0:00:14]} Nh5 {[%emt 0:04:37]} 10. Nd2 {[%emt 0:06:13]} O-O {[%emt 0:03:24]} 11. g3 {[%emt 0:02:13]} f5 {[%emt 0:07:10]} 12. exf5 {[%emt 0:00:20]} Bxf5 {[%emt 0:05:16]} 13. Nde4 {[%emt 0:01:20]} Nxe4 {[%emt 0:01:08]} 14. Nxe4 {[%emt 0:00:08]} Nf6 {[%emt 0:04:25]} 15. Bd3 {[%emt 0:01:09]} Nxe4 {[%emt 0:10:37]} 16. Bxe4 {[%emt 0:00:06]} Qf6 {[%emt 0:04:30]} 17. Ke2 {[%emt 0:06:02]} Rf7 {[%emt 0:11:53]} 18. f3 {[%emt 0:02:10]} c6 {[%emt 0:05:13]} 19. h4 {[%emt 0:06:43]} cxd5 {[%emt 0:01:46]} 20. cxd5 {[%emt 0:00:22]} Qd8 {[%emt 0:05:21]} 21. Rac1 {[%emt 0:04:45]} Rc8 {[%emt 0:02:02]} 22. Qd3 {[%emt 0:01:09]} Rxc1 {[%emt 0:04:53]} 23. Rxc1 {[%emt 0:00:11]} Qd7 {[%emt 0:00:32]} 24. b3 {[%emt 0:14:16]} h5 {[%emt 0:00:26]} 25. a4 {[%emt 0:04:02]} 1/2-1/2

[Event "SVK Extraliga 2019-20"]
[Site "Slovakia"]
[Date "2019.11.24"]
[Round "4.4"]
[White "Kralovic, Andrej"]
[Black "Szustakowski, Antoni"]
[Result "1/2-1/2"]
[ECO "B51"]
[WhiteElo "2222"]
[BlackElo "2287"]
[Annotator "NA"]
[PlyCount "88"]
[EventDate "2019.10.19"]
[EventType "team-tourn"]
[EventCountry "SVK"]
[SourceTitle "playchess.com"]
[Source "ChessBase"]
[SourceQuality "1"]
[WhiteTeam "Bratislava"]
[BlackTeam "Prakovce"]
[TimeControl "40/5400+30:1800+30"]

1. e4 {[%emt 0:00:00]} c5 {[%emt 0:00:00]} 2. Nf3 {[%emt 0:00:03]} d6 {[%emt 0:00:00]} 3. Bb5+ {[%emt 0:00:14]} Nc6 {[%emt 0:00:00]} 4. O-O {[%emt 0:00:46]} Bd7 {[%emt 0:00:00]} 5. Re1 {[%emt 0:00:29]} Nf6 {[%emt 0:00:21]} 6. c3 {[%emt 0:01:47]} a6 {[%emt 0:00:06]} 7. Bf1 {[%emt 0:00:52]} Bg4 {[%emt 0:00:08]} 8. h3 {[%emt 0:01:23]} Bxf3 {[%emt 0:00:06]} 9. Qxf3 {[%emt 0:00:11]} e6 {[%emt 0:00:08]} 10. Na3 {[%emt 0:04:30]} Be7 {[%emt 0:05:43]} 11. Nc2 {[%emt 0:04:33]} Qb6 $11 {[%emt 0:07:18]} 12. d3 {[%emt 0:02:12]} O-O {[%emt 0:00:34]} 13. Rb1 {[%emt 0:04:53]} d5 {[%emt 0:03:05]} 14. Bf4 {[%emt 0:06:30]} d4 {[%emt 0:07:58]} 15. c4 {[%emt 0:08:14]} e5 {[%emt 0:01:14]} 16. Bd2 {[%emt 0:00:18]} Qc7 {[%emt 0:01:12]} 17. a3 {[%emt 0:14:18]} b5 {[%emt 0:06:05]} 18. b4 {[%emt 0:05:10]} Rab8 {[%emt 0:03:31]} 19. Rec1 {[%emt 0:04:01]} Qa7 {[%emt 0:11:53]} 20. g3 {[%emt 0:05:23]} Rfd8 {[%emt 0:02:35]} 21. cxb5 {[%emt 0:03:30]} axb5 {[%emt 0:02:35]} 22. bxc5 {[%emt 0:00:14]} Bxc5 {[%emt 0:00:47]} 23. h4 {[%emt 0:02:11]} Be7 {[%emt 0:02:31]} 24. Bh3 {[%emt 0:02:02]} Rb6 {[%emt 0:11:20]} 25. Nb4 {[%emt 0:04:53]} Nxb4 {[%emt 0:03:35]} 26. axb4 {[%emt 0:00:08]} Ra6 {[%emt 0:04:34]} 27. Be1 {[%emt 0:07:05]} Nd7 {[%emt 0:03:48]} 28. Qd1 {[%emt 0:01:31]} Nb6 {[%emt 0:04:14]} 29. Rc6 {[%emt 0:04:40]} Na4 {[%emt 0:04:58]} 30. Qc1 {[%emt 0:05:03]} Qa8 {[%emt 0:03:01]} 31. Rxa6 {[%emt 0:01:59]} Qxa6 {[%emt 0:00:04]} 32. Qc7 {[%emt 0:00:11]} Qd6 {[%emt 0:01:26]} 33. Qb7 {[%emt 0:05:33]} Nc3 {[%emt 0:02:56]} 34. Rb3 {[%emt 0:00:12]} Bf8 {[%emt 0:03:18]} 35. Kf1 {[%emt 0:01:42]} Rb8 {[%emt 0:02:02]} 36. Qa7 {[%emt 0:00:09]} Na4 {[%emt 0:03:29]} 37. Rb1 {[%emt 0:00:21]} Nc3 {[%emt 0:00:35]} 38. Ra1 {[%emt 0:00:48]} Rd8 {[%emt 0:00:58]} 39. Qb7 {[%emt 0:00:48]} Qb8 {[%emt 0:00:35]} 40. Qa6 {[%emt 0:00:40]} Qd6 {[%emt 0:00:25]} 41. Qb7 {[%emt 0:03:11]} Qb8 {[%emt 0:02:47]} 42. Ra7 {[%emt 0:05:08]} Qxb7 {[%emt 0:00:23]} 43. Rxb7 {[%emt 0:00:07]} Bxb4 {[%emt 0:01:33]} 44. Bd7 {[%emt 0:00:32]} Bd6 {[%emt 0:01:23]} 1/2-1/2